[Event "4th ESNA Championship 2022"]
[Site "Vaduz"]
[Date "2022.09.28"]
[Round "5.2"]
[White "Kirby, Peter J."]
[Black "Berend, Fred"]
[Result "0-1"]
[ECO "E04"]
[WhiteElo "2011"]
[BlackElo "2300"]
[Annotator "TA"]
[PlyCount "76"]
[EventDate "2022.09.25"]
[EventType "tourn"]
[EventCountry "LIE"]
[SourceTitle "playchess.com"]
[Source "ChessBase"]
[SourceQuality "1"]
[TimeControl "40/5400+30:1800+30"]

{[%evp 19,76,5,2,0,29,-10,-18,0,4,0,0,-43,-25,-38,-22,-45,-42,-32,-39,-100,-100,-95,-39,-94,-71,-79,-62,-75,-36,-39,0,-170,0,0,0,-5,18,0,5,-85,-79,-313,-163,-390,-391,-387,-380,-500,-492,-495,-195,-454,-265,-605,-596,-1216,-758,-1226,-1186]} 1. Nf3 {[%emt 0:00:03]} d5 {[%emt 0:00:11]} 2. d4 {[%emt 0:00:09]} Nf6 {[%emt 1:31:19]} 3. c4 {[%emt 0:00:06]} e6 {[%emt 0:00:00]} 4. g3 {[%emt 0:00:05]} dxc4 {[%emt 0:00:00]} 5. Bg2 {[%emt 0:00:15]} c5 {[%emt 0:00:00]} 6. O-O {[%emt 0:01:02]} Nc6 {[%emt 0:00:00]} 7. Qa4 {[%emt 0:08:27]} Bd7 {[%emt 0:00:00]} 8. Qxc4 {[%emt 0:00:46]} b5 {[%emt 0:00:00]} 9. Qd3 {[%emt 0:08:55]} c4 {[%emt 0:00:00]} 10. Qd1 {[%emt 0:00:26]} Rc8 {[%emt 0:00:00]} 11. b3 {[%emt 0:07:42] 11.Bf4 is setting a new trend. E04: Open Catalan: 5 Nf3.} Na5 {[%emt 0:00:00][%cal Bc6a5,Ba5c4,Bc4b6][%mdl 32]} 12. bxc4 {[%emt 0:04:19]} (12. Ne5 {with more complications.} Be7 13. Bd2 b4 14. Nxc4 Nxc4 15. bxc4 Rxc4 16. Qb3) 12... Nxc4 {[%emt 0:00:00]} 13. Nbd2 {[%emt 0:02:36] The position is equal.} (13. Ne5 {keeps more tension.} Be7 14. Nd2 O-O 15. e4) 13... Nb6 {[%emt 0:00:00] [#]} 14. Nb3 $146 {[%emt 0:05:32]} ({Predecessor:} 14. Ne5 b4 15. Nb3 Nbd5 16. Qd3 Nc3 17. Nxd7 Qxd7 18. Bd2 Ncd5 19. Rfc1 Rxc1+ 20. Rxc1 {1-0 (39) Bolbochan,J-Letelier Martner,R Sao Paulo 1960}) 14... Bc6 {[%emt 0:00:00]} 15. Bd2 {[%emt 0:02:35]} Nc4 {[%emt 0:00:00]} 16. Bg5 {[%emt 0:08:31]} Be7 {[%emt 0:00:00]} 17. Nbd2 {[%emt 0:01:47]} O-O {[%emt 0:00:00]} 18. Nxc4 {[%emt 0:01:11]} bxc4 {[%emt 0:00:00]} 19. Ne5 {[%emt 0:04:04]} (19. Rc1 $15) 19... Bxg2 $17 {[%emt 0:00:00]} 20. Kxg2 {[%emt 0:00:01]} Ba3 {[%emt 0:00:00]} (20... h6 $17 21. Bxf6 Bxf6) 21. Bc1 {[%emt 0:01:31]} (21. Nf3 $15) 21... Bb4 $1 {[%emt 0:00:00]} 22. Rb1 {[%emt 0:06:13]} Qd5+ {[%emt 0:00:00]} (22... Nd5 $5 {[%cal Rd5c3]} 23. Qc2 f5 $15) 23. f3 {[%emt 0:02:05]} Bd6 {[%emt 0:00:00]} (23... a5 $5 {[%cal Rf6e4]} 24. a3 Bd6 $15) 24. Bf4 $1 {[%emt 0:03:12]} c3 {[%emt 0:00:00]} 25. Rb3 $2 {[%emt 0:04:10]} (25. Qa4 $11 {and White stays safe.}) 25... Rfd8 $2 {[%emt 0:00:00]} (25... Qa5 $1 $19 26. Qc2 Nd5) 26. e4 $11 {[%emt 0:04:36]} Qa5 $36 {[%emt 0:00:00][%mdl 2048] White is under pressure.} 27. Qc2 {[%emt 0:00:27]} Ba3 {[%emt 0:00:00]} 28. Be3 {[%emt 0:04:34]} Ne8 {[%emt 0:00:00]} 29. Nd3 {[%emt 0:02:11]} (29. Rd1 $11) 29... Nd6 $1 $17 {[%emt 0:00:00]} 30. Bc1 $2 {[%emt 0:07:21] Now White is beyond hope.} (30. Nc5 $17 {might work better.} Bxc5 31. dxc5) 30... Nc4 {[%emt 0:01:18]} (30... Bxc1 $142 31. Nxc1 (31. Rxc1 $2 Nb5 $19) 31... Nb5) 31. Re1 $2 {[%emt 0:01:14]} (31. Kg1) 31... Bxc1 $19 {[%emt 0:00:45]} 32. Nxc1 {[%emt 0:00:55]} Nd2 {[%emt 0:04:50]} 33. Rb7 {[%emt 0:01:21]} Rxd4 {[%emt 0:01:40][%cal Od2f3] Strongly threatening ...Nxf3!} ({Inferior is} 33... Qh5 34. Qd3 $11) 34. Ne2 {[%emt 0:03:01] [#]} Rdc4 {[%emt 0:00:20]} (34... Nxf3 $1 {[%mdl 512]} 35. Reb1 (35. Kxf3 $2 Rd2 $19) 35... Rdd8) 35. Rd1 {[%emt 0:01:55]} (35. Qd3) 35... g5 {[%emt 0:01:27]} ({Not} 35... Qh5 36. Rxd2 cxd2 {[#]} 37. Qxc4 $3 $18 {[%mdl 512]}) (35... Rd8 $142 36. Kh1 h6) 36. f4 $2 {[%emt 0:01:20]} (36. Rd7) 36... Qa6 {[%emt 0:01:31] Black is clearly winning.} 37. Re7 {[%emt 0:01:51]} R4c7 {[%emt 0:00:30]} 38. Rxd2 {[%emt 0:01:16]} cxd2 {[%emt 0:01:41] Weighted Error Value: White=1.10/Black=0.62} 0-1

[Event "4th ESNA Championship 2022"]
[Site "Vaduz"]
[Date "2022.09.28"]
[Round "5.3"]
[White "Kirby, Peter J."]
[Black "Berend, Fred"]
[Result "*"]
[ECO "E04"]
[WhiteElo "2011"]
[BlackElo "2300"]
[Annotator "TA"]
[PlyCount "58"]
[EventDate "2022.09.25"]
[EventType "tourn"]
[EventCountry "LIE"]
[SourceTitle "playchess.com"]
[Source "ChessBase"]
[SourceQuality "1"]
[TimeControl "40/5400+30:1800+30"]

{[%evp 19,58,17,23,0,0,0,0,8,16,-21,-14,-27,-33,-21,-22,-34,-39,-31,-34,-97,-97,-79,-38,-91,-107,-77,-68,-67,-37,-42,-15,-167,0,0,0,0,20,0,0,-63,-68]} 1. Nf3 {[%emt 0:00:03]} d5 {[%emt 0:00:11]} 2. d4 {[%emt 1:31:27]} Nf6 {[%emt 1:31:19]} 3. c4 {[%emt 0:00:06]} e6 {[%emt 0:00:30]} 4. g3 {[%emt 0:00:05]} dxc4 {[%emt 0:00:00]} 5. Bg2 {[%emt 0:00:15]} c5 {[%emt 0:00:00]} 6. O-O {[%emt 0:01:02]} Nc6 {[%emt 0:00:00]} 7. Qa4 {[%emt 0:08:27]} Bd7 {[%emt 0:00:00]} 8. Qxc4 {[%emt 0:00:46]} b5 {[%emt 0:00:00]} 9. Qd3 {[%emt 0:08:55]} c4 {[%emt 0:00:00]} 10. Qd1 {[%emt 0:00:26]} Rc8 {[%emt 0:00:00]} 11. b3 {[%emt 0:07:42] 11.Bf4 is a critical line. E04: Open Catalan: 5 Nf3.} Na5 {[%emt 0:00:00][%cal Bc6a5,Ba5c4,Bc4b6][%mdl 32]} 12. bxc4 {[%emt 0:04:19]} Nxc4 {[%emt 0:00:00]} 13. Nbd2 {[%emt 0:02:36] The position is equal.} Nb6 {[%emt 0:00:00] [#]} 14. Nb3 $146 {[%emt 0:05:32]} (14. Ne5 {with more complications.} Be7 15. Nb3 Nc4 16. Bg5) ({Predecessor:} 14. Ne5 b4 15. Nb3 Nbd5 16. Qd3 Nc3 17. Nxd7 Qxd7 18. Bd2 Ncd5 19. Rfc1 Rxc1+ 20. Rxc1 {1-0 (39) Bolbochan,J-Letelier Martner,R Sao Paulo 1960}) 14... Bc6 {[%emt 0:00:00]} 15. Bd2 {[%emt 0:02:35]} Nc4 {[%emt 0:00:00]} 16. Bg5 {[%emt 0:08:31]} Be7 {[%emt 0:00:00]} 17. Nbd2 {[%emt 0:01:47]} O-O {[%emt 0:07:30]} 18. Nxc4 {[%emt 0:01:11]} bxc4 {[%emt 0:00:00]} 19. Ne5 {[%emt 0:45:33]} (19. Rc1 $15) 19... Bxg2 $17 {[%emt 0:00:00]} 20. Kxg2 {[%emt 0:00:01]} Ba3 {[%emt 0:00:00] Prevents Rc1.} 21. Bc1 {[%emt 0:01:31] [#]} ({White should try} 21. Nf3 $15) 21... Bb4 $1 {[%emt 0:00:00]} 22. Rb1 {[%emt 0:06:13]} Qd5+ {[%emt 0:00:00]} 23. f3 {[%emt 0:02:05]} Bd6 {[%emt 0:00:00]} (23... a5 $5 {[%cal Rf6e4]} 24. Be3 Qd6 $15) 24. Bf4 $1 {[%emt 0:03:12]} c3 {[%emt 0:00:00]} 25. Rb3 $2 {[%emt 0:04:10] [#]} (25. Qa4 $11 {and White is okay.}) 25... Rfd8 $2 {[%emt 0:11:30]} (25... Qa5 $1 $19 {And now ...Nd5 would win.} 26. Qc2 Nd5) 26. e4 $11 {[%emt 0:04:36]} Qa5 {[%emt 0:12:00]} 27. Qc2 {[%emt 0:00:27]} Ba3 {[%emt 0:00:00]} 28. Be3 {[%emt 0:04:34]} Ne8 {[%emt 0:00:00]} 29. Nd3 {[%emt 0:02:11]} (29. Rd1 $11) 29... Nd6 $1 {[%emt 0:00:00] Weighted Error Value: White=0.27 (precise) /Black=0.16 (very precise)} *

[Event "4th ESNA Championship 2022"]
[Site "Vaduz"]
[Date "2022.09.28"]
[Round "5.4"]
[White "Michaelides, Konstantinos"]
[Black "Frick, Renato"]
[Result "1-0"]
[ECO "D03"]
[WhiteElo "2304"]
[BlackElo "1875"]
[Annotator "TA"]
[PlyCount "77"]
[EventDate "2022.09.25"]
[EventType "tourn"]
[EventCountry "LIE"]
[SourceTitle "playchess.com"]
[Source "ChessBase"]
[SourceQuality "1"]
[TimeControl "40/5400+30:1800+30"]

{[%evp 13,77,14,16,0,56,46,53,48,46,46,48,48,48,42,59,62,65,70,68,54,85,71,110,29,75,70,116,89,92,93,89,83,85,76,76,80,74,80,80,72,79,0,81,77,93,97,97,87,164,152,147,158,156,90,105,102,248,234,489,489,473,461,511,505,489,463]} 1. d4 {[%emt 0:00:08]} Nf6 {[%emt 0:00:45]} 2. Nf3 {[%emt 0:00:13]} e6 {[%emt 0:00:11]} 3. Bg5 {[%emt 0:00:14]} d5 {[%emt 0:01:06]} 4. e3 {[%emt 0:00:58]} c5 {[%emt 0:01:16]} 5. c3 {[%emt 0:00:31]} Nc6 {[%emt 0:02:44]} 6. Nbd2 {[%emt 0:00:59]} Be7 {[%emt 0:00:19]} 7. Bd3 {[%emt 0:00:11]} Nd7 {[%emt 0:04:41][%cal Bf6d7,Bd7f8,Bf8g6][%mdl 32]} 8. Bf4 {[%emt 0:04:51] D03: 1 d4 d5 2 Nf3 Nf6 3 Bg5, including Torre Attack with early ...d5.} cxd4 {[%emt 0:05:06]} (8... f5 $11) 9. exd4 $14 {[%emt 0:00:34]} Nf8 {[%emt 0:00:33] [#]} 10. h4 $146 {[%emt 0:06:54] White is slightly better.} ({Predecessor:} 10. Ne5 Ng6 11. Nxg6 hxg6 12. Nf3 Bd6 13. Qd2 Qc7 14. Bxd6 Qxd6 15. O-O-O Bd7 16. h4 {½-½ (27) Mantovani,R (2370)-Pantaleoni,C (2245) Chianciano Terme 1989}) 10... Ng6 {[%emt 0:01:19]} 11. Bg3 {[%emt 0:03:54]} Bd6 {[%emt 0:01:32]} 12. Bxd6 {[%emt 0:01:44]} Qxd6 {[%emt 0:00:08]} 13. g3 {[%emt 0:00:09]} e5 {[%emt 0:11:34]} 14. Bxg6 {[%emt 0:07:59]} hxg6 {[%emt 0:01:30]} 15. dxe5 {[%emt 0:00:25]} Nxe5 {[%emt 0:02:18]} 16. Qe2 {[%emt 0:04:59] Against Nd3+} f6 {[%emt 0:01:27]} 17. Nxe5 $1 {[%emt 0:14:41]} fxe5 {[%emt 0:08:31]} 18. f4 {[%emt 0:05:51]} ({Better is} 18. Nf3 $16) 18... e4 {[%emt 0:00:50]} (18... O-O $11) 19. O-O-O $16 {[%emt 0:00:57][%cal Od2e4] And now Nxe4! would win.} Qe6 {[%emt 0:18:40]} (19... Qc6 $14) 20. Nf1 {[%emt 0:09:33]} Qc6 {[%emt 0:05:22]} 21. Ne3 {[%emt 0:04:21]} Be6 {[%emt 0:00:15]} 22. Rd4 {[%emt 0:02:41] White is more active.} O-O-O {[%emt 0:07:25]} 23. Rhd1 {[%emt 0:00:50]} Rd7 {[%emt 0:00:40]} 24. Kb1 {[%emt 0:01:26]} Kb8 {[%emt 0:00:30]} 25. Nc2 {[%emt 0:03:47]} Rhd8 {[%emt 0:02:17]} 26. Nb4 {[%emt 0:02:30]} Qb6 {[%emt 0:00:49]} 27. Nc2 {[%emt 0:04:54]} (27. R1d2 $16) 27... a5 {[%emt 0:04:05]} (27... Qc6 $1 $11 {keeps the balance.}) 28. Ne3 {[%emt 0:01:35]} Qc5 {[%emt 0:03:10]} 29. h5 {[%emt 0:02:54]} gxh5 {[%emt 0:02:31]} 30. Qxh5 {[%emt 0:01:08][%cal Oc3c4]} b5 {[%emt 0:04:32] Prevents c4.} (30... Bf7 $16 {might work better.} 31. Qg4 Ka7) 31. Rxe4 {[%emt 0:05:12]} Bf7 {[%emt 0:02:22] [#]} 32. Qe5+ {[%emt 0:02:16]} Kb7 {[%emt 0:01:57]} 33. Qd4 {[%emt 0:01:17]} (33. Red4 $142) 33... Qxd4 {[%emt 0:03:21]} 34. Rexd4 {[%emt 0:00:03]} Kc6 {[%emt 0:00:21] [#] This costs Black the game.} (34... Re7 $16 {was worth a try.}) 35. Ng4 $1 $18 {[%emt 0:00:47] Ne5+ is the strong threat.} Bh5 $2 {[%emt 0:01:36]} (35... Bg6+ 36. Kc1 Rd6 37. Ne5+ Kc5) 36. Ne5+ {[%emt 0:00:10] White is clearly winning.} Kc7 {[%emt 0:02:47]} 37. Rh1 {[%emt 0:00:35]} Rh8 {[%emt 0:00:00][%cal Oh5g6]} 38. Kc1 {[%emt 0:01:15]} Rdd8 {[%emt 0:00:00]} 39. g4 {[%emt 0:00:33] Weighted Error Value: White=0.14 (very precise) /Black=0.31} 1-0

[Event "4th ESNA Championship 2022"]
[Site "Vaduz"]
[Date "2022.09.28"]
[Round "5.5"]
[White "Volpinari, Danilo"]
[Black "Apol, Luitjen Akselsson"]
[Result "0-1"]
[ECO "A45"]
[WhiteElo "1929"]
[BlackElo "2113"]
[Annotator "TA"]
[PlyCount "68"]
[EventDate "2022.09.25"]
[EventType "tourn"]
[EventCountry "LIE"]
[SourceTitle "playchess.com"]
[Source "ChessBase"]
[SourceQuality "1"]
[TimeControl "40/5400+30:1800+30"]

{[%evp 9,68,0,-8,-66,-56,-72,-76,-117,-55,-136,-93,-70,0,-320,-322,-320,-320,-319,-346,-338,-316,-389,-406,-415,-424,-412,-423,-437,-472,-453,-443,-462,-468,-499,-497,-518,-502,-512,-501,-588,-538,-513,-479,-477,-464,-488,-491,-600,-557,-680,-667,-763,-763,-862,-769,-912,-677,-694,-595,-1410,-1386]} 1. d4 {[%emt 0:00:07][%cal Bd2d4,Bd4d5][%mdl 32]} Nf6 {[%emt 0:00:17]} 2. Bg5 {[%emt 0:00:27]} Ne4 {[%emt 0:00:22]} 3. Bf4 {[%emt 0:00:10]} c5 {[%emt 0:00:38]} 4. d5 {[%emt 0:01:01]} Qb6 {[%emt 0:01:57]} 5. Qc1 {[%emt 0:08:38]} e6 {[%emt 0:06:22]} 6. f3 {[%emt 1:23:07] A45: Trompowsky Attack.} (6. dxe6 $11 fxe6 7. f3) 6... Nf6 $15 {[%emt 0:02:17]} 7. e4 {[%emt 0:00:00]} exd5 {[%emt 0:05:15]} 8. e5 {[%emt 0:00:00] Black is better.} Qe6 {[%emt 0:02:06]} ({Black should play} 8... Nh5 $17 9. Ne2 Qe6) 9. Nh3 {[%emt 0:00:00] [#]} (9. Kf2 $15 Nh5 10. Nc3) 9... d6 $146 {[%emt 0:11:03]} ({Predecessor:} 9... Nc6 10. Qe3 d4 11. Qe2 Nd5 12. Na3 Nxf4 13. Nxf4 Qxe5 14. Nd5 Qxe2+ 15. Bxe2 Kd8 {0-1 (42) Witwicki,P (1860)-Swiatek,B (2041) Poland 2016}) 10. Bb5+ {[%emt 0:00:00]} Bd7 {[%emt 0:12:58]} (10... Nc6 $15 11. Ng5 Qe7) 11. Kf2 $2 {[%emt 0:00:00][%mdl 8192] Black continues to play with concentration.} (11. Ng5 $11 {and White has nothing to worry.} Qe7 12. O-O (12. Bxd7+ $2 Nbxd7 13. O-O dxe5 $19) 12... Bxb5 13. Re1 dxe5 14. Rxe5) 11... dxe5 $19 {[%emt 0:12:47]} (11... Bxb5 12. Re1 Ne4+ 13. fxe4 $17) 12. Bxe5 {[%emt 0:00:00]} Qxe5 {[%emt 0:04:33]} (12... Bxb5 13. Re1 Be7 14. Nc3 $17) 13. Re1 {[%emt 0:00:00]} Ne4+ $1 {[%emt 0:00:07]} 14. fxe4 {[%emt 0:00:00]} Qd4+ {[%emt 0:02:01]} (14... Bxb5 $2 15. exd5 Bd6 16. c4 $18 (16. Rxe5+ Bxe5 17. c4 Ba6 $18)) (14... dxe4 $2 15. Nc3 f5 16. Rd1 $19) 15. Re3 {[%emt 0:00:00]} Bxb5 {[%emt 0:02:39]} 16. exd5+ {[%emt 0:00:00]} Be7 {[%emt 0:04:54][%cal Bf8e7,Be7f6,Bf6d4,Bd4e5][%mdl 32]} 17. Nc3 {[%emt 0:00:00]} Bd7 {[%emt 0:05:59]} 18. Qe1 {[%emt 0:00:00] Black is clearly winning.} O-O {[%emt 0:08:43]} (18... Bxh3 $2 19. Rd1 Qf4+ 20. Kg1 $19) 19. Rd1 {[%emt 0:00:00]} Qh4+ {[%emt 0:01:29]} ({Wrong is} 19... Bh4+ $2 20. g3 Qf6+ 21. Rf3 Bxh3 22. Rxf6 Bxf6 23. Qe2 $19) 20. Kg1 {[%emt 0:00:00]} Qxe1+ {[%emt 0:00:53]} 21. Rdxe1 {[%emt 0:00:00]} Bf6 {[%emt 0:00:13]} 22. Nf2 {[%emt 0:00:00]} Na6 {[%emt 0:00:46]} 23. Nce4 {[%emt 0:00:00]} Bd4 {[%emt 0:00:39]} 24. Rg3 {[%emt 0:00:15]} Rae8 {[%emt 0:04:29] [#] Strongly threatening ...f5.} 25. c3 {[%emt 0:00:59]} Be5 {[%emt 0:00:23]} 26. Rge3 {[%emt 0:02:07]} Bb8 {[%emt 0:01:56]} 27. g4 {[%emt 0:01:02]} c4 {[%emt 0:01:46]} ({Don't blunder} 27... Bf4 $2 28. Rf3 Be5 29. Kg2 $19) 28. h4 {[%emt 0:00:27]} b5 {[%emt 0:01:28]} 29. a3 {[%emt 0:00:12]} Re5 {[%emt 0:00:43]} 30. g5 {[%emt 0:01:05]} Rfe8 {[%emt 0:00:41]} 31. h5 {[%emt 0:00:44]} Bc7 {[%emt 0:00:22] aiming for ...Bb6.} 32. Kg2 {[%emt 0:01:36]} Bf5 {[%emt 0:00:48]} 33. Kf3 {[%emt 0:00:57]} Bb6 {[%emt 0:00:17]} (33... Rxd5 {[#] is a self mate.} 34. Nf6+ $1 {[%mdl 512]} gxf6 35. Rxe8+ Kg7 36. h6+ Kg6 37. Rg8+ Kh5 38. Rh1+) 34. Ng4 {[%emt 0:01:27]} Bxg4+ {[%emt 0:00:15] Weighted Error Value: White=0.42/Black=0.12 (very precise)} 0-1

[Event "4th ESNA Championship 2022"]
[Site "Vaduz"]
[Date "2022.09.28"]
[Round "6.1"]
[White "Mizzi, Jack"]
[Black "Apol, Luitjen Akselsson"]
[Result "0-1"]
[ECO "E62"]
[WhiteElo "1863"]
[BlackElo "2113"]
[Annotator "TA"]
[PlyCount "86"]
[EventDate "2022.09.25"]
[EventType "tourn"]
[EventCountry "LIE"]
[SourceTitle "playchess.com"]
[Source "ChessBase"]
[SourceQuality "1"]
[TimeControl "40/5400+30:1800+30"]

{[%evp 17,86,22,36,36,33,28,45,31,22,30,28,25,30,33,31,25,14,10,33,16,20,20,22,28,23,23,31,18,25,10,6,0,0,0,0,0,0,0,0,-5,0,-83,-82,-80,-74,-177,-184,-173,-170,-221,-230,-473,-468,-462,-319,-435,-453,-641,-640,-534,-316,-289,-240,-965,-953,-849,-632,-856,-830,-762,-746]} 1. d4 {[%emt 0:00:04]} Nf6 {[%emt 0:00:10]} 2. c4 {[%emt 0:00:10]} g6 {[%emt 0:00:20]} 3. Nf3 {[%emt 0:00:19]} Bg7 {[%emt 0:00:08]} 4. g3 {[%emt 0:00:08]} O-O {[%emt 0:00:25]} 5. Bg2 {[%emt 0:00:13]} d6 {[%emt 0:00:26]} 6. O-O {[%emt 0:00:18]} Nc6 {[%emt 0:00:33]} 7. Nc3 {[%emt 0:00:16]} e5 {[%emt 0:02:47]} 8. dxe5 {[%emt 0:01:15]} dxe5 {[%emt 0:00:14]} 9. Bg5 {[%emt 0:00:16]} Be6 {[%emt 0:00:53]} 10. Qc1 {[%emt 0:00:55] E62: King's Indian: Fianchetto: 6...c6 and Panno Variation (6...Nc6) without ...a6.} Qc8 {[%emt 0:00:25]} 11. Rd1 {[%emt 0:08:25]} Nd7 {[%emt 0:04:16] The main line 11...Nd7 scores better than 11...Rd8.} 12. Nd5 {[%emt 0:10:48] White is slightly better.} f6 {[%emt 0:12:05]} 13. Bh6 {[%emt 0:01:53]} Re8 {[%emt 0:01:19]} 14. Bxg7 {[%emt 0:04:11]} (14. b4 {is more complex.} Nd8 15. Bxg7 Kxg7 16. a3) 14... Kxg7 {[%emt 0:00:02]} 15. Qc3 {[%emt 0:02:09]} Nd8 {[%emt 0:15:00]} 16. b4 {[%emt 0:04:41]} c6 {[%emt 0:06:45]} 17. Ne3 {[%emt 0:00:39]} Nf7 {[%emt 0:05:19][%cal Oa7a5]} 18. c5 {[%emt 0:08:07]} Qc7 {[%emt 0:00:51]} 19. Nd2 {[%emt 0:02:00] [#]} Rad8 $146 {[%emt 0:08:59]} ({Predecessor:} 19... f5 20. Ndc4 Bxc4 21. Nxc4 Nf6 22. Nd6 Red8 23. Nxf7 Kxf7 24. e4 Qe7 25. Re1 f4 26. gxf4 exf4 {½-½ (82) Hakemi,A (2316)-Mahdavi,R (2124) Chess.com INT 2021}) 20. Ndc4 {[%emt 0:02:51]} Nf8 {[%emt 0:06:02]} 21. a4 {[%emt 0:03:52]} Bc8 {[%emt 0:02:35]} 22. Nc2 {[%emt 0:06:36]} Bg4 {[%emt 0:07:06]} 23. Kf1 {[%emt 0:09:21]} Qc8 {[%emt 0:02:06]} 24. Na5 {[%emt 0:03:44]} Bh3 {[%emt 0:01:57]} 25. Bxh3 {[%emt 0:04:55]} Qxh3+ {[%emt 0:00:02]} 26. Kg1 {[%emt 0:00:10]} Qc8 {[%emt 0:02:55]} 27. b5 {[%emt 0:04:29]} Ne6 {[%emt 0:03:19]} 28. Nb3 {[%emt 0:01:51]} h5 {[%emt 0:09:05][%cal Oh5h4]} 29. bxc6 {[%emt 0:07:44]} (29. h4 $11) 29... Qxc6 $17 {[%emt 0:01:31][%cal Oh5h4]} 30. Qf3 {[%emt 0:01:48]} Qc8 {[%emt 0:07:55] Black is more active.} 31. Ne3 {[%emt 0:03:50]} (31. h4 $17) 31... Nfg5 $19 {[%emt 0:00:00]} ({Inferior is} 31... Nxc5 32. Nxc5 Qxc5 33. Qxb7 $11) 32. Qg2 {[%emt 0:00:22]} Nd4 $36 {[%emt 0:00:00][%mdl 2048] White is under strong pressure.} 33. Nxd4 {[%emt 0:01:27]} (33. Na5 {keeps fighting.}) 33... exd4 {[%emt 0:00:00]} ({And not} 33... Rxd4 34. Rab1 Ne4 35. a5 $17) 34. Nc4 {[%emt 0:00:45]} (34. h4 Ne4 35. Nc2) 34... Rxe2 {[%emt 0:00:00] [#] Hoping for ...Nh3+.} 35. Kf1 {[%emt 0:01:26]} Re7 {[%emt 0:00:18] Strongly threatening ...Qe6.} 36. Nd6 {[%emt 0:00:45]} Qxc5 {[%emt 0:00:15]} 37. Nxb7 {[%emt 0:00:20]} (37. h4 $142 Qxd6 38. hxg5) 37... Qc4+ {[%emt 0:00:01]} 38. Kg1 {[%emt 0:00:14]} Rd5 {[%emt 0:01:02]} 39. Rdc1 {[%emt 0:01:07]} Qb3 {[%emt 0:01:06]} 40. Rab1 $2 {[%emt 0:00:07]} (40. Nc5 Nf3+ 41. Kh1) 40... Nf3+ {[%emt 0:00:50] Black is clearly winning.} 41. Kh1 {[%emt 0:30:22]} Qa3 {[%emt 0:31:24] [#] aiming for ...Qd3.} ({Stronger than} 41... Rxb7 42. Rxb3 Rxb3 43. h4 $15) 42. Ra1 {[%emt 0:00:53]} Qd3 {[%emt 0:00:00]} 43. Nc5 {[%emt 0:00:00]} Qe2 {[%emt 0:00:00] Weighted Error Value: White=0.53/Black=0.26 (precise)} 0-1

[Event "4th ESNA Championship 2022"]
[Site "Vaduz"]
[Date "2022.09.28"]
[Round "6.2"]
[White "Frick, Renato"]
[Black "Volpinari, Danilo"]
[Result "1/2-1/2"]
[ECO "B35"]
[WhiteElo "1875"]
[BlackElo "1929"]
[Annotator "TA"]
[PlyCount "74"]
[EventDate "2022.09.25"]
[EventType "tourn"]
[EventCountry "LIE"]
[SourceTitle "playchess.com"]
[Source "ChessBase"]
[SourceQuality "1"]
[TimeControl "40/5400+30:1800+30"]

{[%evp 14,74,17,16,11,18,37,-14,-11,-24,-14,-30,-27,-40,-22,-23,-29,-35,-31,-45,-44,-41,-25,-37,-19,-41,-35,-57,-55,-55,-47,-55,-47,-55,-56,-55,-59,-58,-43,-65,-67,-75,-73,-90,-71,-113,-56,-58,-70,-102,0,-64,-18,-54,0,-64,-64,-64,-64,-64,-64,-64,-35]} 1. e4 {[%emt 0:00:04]} c5 {[%emt 0:00:09]} 2. Nf3 {[%emt 0:00:09]} g6 {[%emt 0:00:15]} 3. d4 {[%emt 0:00:22]} cxd4 {[%emt 0:00:09]} 4. Nxd4 {[%emt 0:00:06]} Bg7 {[%emt 0:00:13]} 5. Nc3 {[%emt 0:00:14]} Nc6 {[%emt 0:00:36]} 6. Be3 {[%emt 0:00:19]} Nf6 {[%emt 0:01:25]} 7. Bc4 {[%emt 0:00:44]} O-O {[%emt 0:01:25]} 8. Bb3 {[%emt 0:07:27]} Re8 {[%emt 0:01:36] B35: Sicilian: Accelerated Dragon with 5 Nc3: main line.} 9. h3 {[%emt 0:06:28]} e6 {[%emt 0:06:31] [#]} 10. Qd2 $146 {[%emt 0:10:31]} ({White should play} 10. O-O $14) ({Predecessor:} 10. O-O d5 11. exd5 Nxd5 12. Nxd5 exd5 13. c3 Na5 14. Qd3 a6 15. Rad1 b5 16. Nf3 Nxb3 17. axb3 {1-0 (42) Korneev,O (2545)-Kalavannan,K (2339) Hastings 2019}) 10... d5 $11 {[%emt 0:02:26] The position is equal.} 11. exd5 {[%emt 0:01:47]} Nxd5 {[%emt 0:01:33]} (11... Nxd4 {looks sharper.} 12. Bxd4 exd5+ 13. Be3 Bxh3 14. Rxh3 d4) 12. Nxd5 {[%emt 0:00:30] [#] Black must now prevent Nxc6.} Nxd4 {[%emt 0:01:35]} 13. Nc3 {[%emt 0:03:01]} Nxb3 {[%emt 0:10:08]} 14. axb3 {[%emt 0:00:21]} Qxd2+ {[%emt 1:09:29]} 15. Bxd2 {[%emt 0:01:40]} Bd7 {[%emt 0:00:00]} 16. Be3 {[%emt 0:08:40]} Bc6 {[%emt 0:00:00]} 17. f3 {[%emt 0:01:13]} a6 {[%emt 0:00:00]} 18. O-O-O {[%emt 0:04:22]} Red8 {[%emt 0:00:00]} 19. Rxd8+ {[%emt 0:08:49]} Rxd8 {[%emt 0:00:00]} 20. Rd1 {[%emt 0:00:25]} Rxd1+ {[%emt 0:00:00]} 21. Nxd1 $15 {[%emt 0:00:25][%mdl 4096] Endgame KBB-KBN} f5 {[%emt 0:00:00]} 22. Nf2 {[%emt 0:03:21]} Kf7 {[%emt 0:00:00]} 23. c3 {[%emt 0:06:23]} e5 {[%emt 0:00:00]} 24. Kd2 {[%emt 0:05:10]} Ke6 {[%emt 0:00:00]} 25. Ke2 {[%emt 0:01:17]} Bf6 {[%emt 0:00:00]} 26. g3 {[%emt 0:04:13]} Bb5+ {[%emt 0:00:00]} 27. c4 {[%emt 0:00:41]} Bc6 {[%emt 0:00:00]} 28. Nd1 {[%emt 0:05:22]} g5 {[%emt 0:00:00]} 29. Bd2 {[%emt 0:04:18] [#]} h5 {[%emt 0:00:00]} (29... f4 $1 $17 {[%cal Rf4g3]} 30. Nc3 fxg3) 30. Nc3 {[%emt 0:05:44]} Be7 {[%emt 0:00:00]} 31. Be3 {[%emt 0:04:35]} Bf6 {[%emt 0:00:00]} 32. Bd2 {[%emt 0:01:31]} Kd6 {[%emt 0:00:00]} (32... g4 $15 {might be stronger.} 33. fxg4 hxg4 34. hxg4 fxg4) 33. Be3 {[%emt 0:01:42]} Ke6 {[%emt 0:00:00]} 34. Bd2 {[%emt 0:00:27]} g4 {[%emt 0:01:22] Black is slightly better.} 35. hxg4 {[%emt 0:01:46]} hxg4 {[%emt 0:02:54]} 36. fxg4 {[%emt 0:02:32]} fxg4 {[%emt 0:00:06]} 37. Be3 {[%emt 0:00:12]} Kf5 {[%emt 0:02:10] Weighted Error Value: White=0.11 (very precise) /Black=0.14 (very precise)} 1/2-1/2